fUST/lending_fUST_20250529
["ID","MTS","AMOUNT","RATE_DAILY","PERIOD"]
[362868608,1748500248866,-176.3696131,0.00022548,2]
[362868609,1748500248876,-572.078714,0.00022548,2]
[362868610,1748500248886,-158.3971896,0.00022548,2]
[362868611,1748500248896,-158.3971896,0.00022548,2]
[362868612,1748500248905,-176.3696131,0.00022548,2]
[362868613,1748500248914,-572.078714,0.00022548,2]
[362868614,1748500248923,-230.86318,0.00022592,7]
[362868615,1748500248932,-713.07,0.00022612,6]
[362868616,1748500248942,-351.53187792,0.00022624,7]
[362868617,1748500248951,-3201.82,0.00022695,2]
[362868618,1748500248960,-444.46,0.00022695,2]
[362868619,1748500248970,-1375.63,0.00022695,2]
[362868620,1748500248980,-430.0,0.00022695,2]
[362868621,1748500248990,-430.0,0.00022695,2]
[362868622,1748500248999,-984.57,0.00022695,2]
[362868623,1748500249009,-916.72,0.00022695,2]
[362868624,1748500249020,-655.73,0.00022695,2]
[362868625,1748500249030,-507.83,0.00022696,2]
[362868626,1748500249040,-268.71002965,0.00022696,2]
[362868627,1748500249050,-535.74,0.00022696,2]
[362868628,1748500249059,-624.25,0.00022696,2]
[362868629,1748500249069,-1926.82,0.00022696,2]
[362868630,1748500249078,-630.07,0.00022696,2]
[362868631,1748500249087,-646.49,0.00022696,2]
[362868632,1748500249097,-151.0,0.000227,7]
[362868633,1748500249107,-151.0,0.000227,7]
[362868634,1748500249116,-151.0,0.000227,7]
[362868635,1748500249126,-713.07,0.00022712,4]
[362868636,1748500249136,-500.0,0.00022721,2]
[362868637,1748500249145,-2000.0,0.00022784,2]
[362868638,1748500249154,-920.81,0.00022787,2]
[362868639,1748500249163,-1260.78,0.00022787,2]
[362868640,1748500249173,-430.0,0.00022787,2]
[362868641,1748500249182,-584.53,0.00022787,2]
[362868642,1748500249191,-430.0,0.00022787,2]
[362868643,1748500249201,-430.0,0.00022787,2]
[362868644,1748500249210,-430.0,0.00022787,2]
[362868645,1748500249219,-154.80897162,0.00022787,2]
[362868646,1748500249230,-692.19,0.00022787,2]
[362868647,1748500249239,-675.98,0.00022787,2]
[362868648,1748500249249,-1820.87,0.00022787,2]
[362868649,1748500249259,-430.0,0.00022787,2]
[362868650,1748500249269,-430.0,0.00022787,2]
[362868651,1748500249279,-2101.13,0.00022787,2]
[362868652,1748500249289,-3458.47,0.00022787,2]
[362868653,1748500249298,-486.69,0.00022787,2]
[362868654,1748500249308,-713.07,0.00022812,4]
[362868655,1748500249318,-351.53187792,0.00022831,8]
[362868656,1748500249328,-1721.01,0.000229,7]
[362868657,1748500249338,-151.0,0.000229,7]
[362868658,1748500249350,-713.07,0.00022912,5]
[362868659,1748500249360,-151.0,0.00022963,2]
[362868660,1748500249370,-207.4,0.00022963,2]
[362868661,1748500249380,-152.20578016,0.00022963,2]
[362868662,1748500249389,-151.0,0.00022963,2]
[362868663,1748500249399,-151.0,0.00022963,2]
[362868664,1748500249409,-151.0,0.00022963,2]
[362868665,1748500249418,-183.24414741,0.00022963,2]
[362868666,1748500249427,-3201.82,0.00022969,2]
[362868667,1748500249436,-444.46,0.00022969,2]
[362868668,1748500249445,-1375.63,0.00022969,2]
[362868669,1748500249455,-430.0,0.00022969,2]
[362868670,1748500249464,-366.0,0.00022969,2]
[362868671,1748500249476,-984.57,0.00022969,2]
[362868672,1748500249485,-916.72,0.00022969,2]
[362868673,1748500249494,-655.73,0.00022969,2]
[362868674,1748500249504,-507.83,0.0002297,2]
[362868675,1748500249514,-535.74,0.0002297,2]
[362868676,1748500249524,-624.25,0.0002297,2]
[362868677,1748500249533,-1926.82,0.0002297,2]
[362868678,1748500249543,-630.07,0.0002297,2]
[362868679,1748500249553,-646.49,0.0002297,2]
[362868680,1748500249562,-151.0,0.00022973,7]
[362868681,1748500249571,-29553.88857779,0.00022999,2]
[362868682,1748500249580,-151.0,0.00022999,7]
[362868683,1748500249590,-151.0,0.00022999,7]
[362868684,1748500249600,-37484.99980903,0.00023,2]
[362868685,1748500249845,-152.935896,0.000222,7]
[362868686,1748500249855,-430.0,0.00022695,2]
[362868687,1748500249864,-430.0,0.00022969,2]
[362868688,1748500249873,-59961.59746471,0.00023,2]
[362868689,1748500249885,-300.0,0.00023,2]
[362868696,1748500471143,150.0,0.00016,2]
[362868699,1748500636624,3742.05155628,0.00016,2]
[362868700,1748500636646,9010.44128571,0.00016,2]
[362868701,1748500636671,9010.44128571,0.00016,2]
[362868702,1748500636693,9010.44128571,0.00016,2]
[362868703,1748500636717,9010.44128571,0.00016,2]
[362868704,1748500636741,9010.44128571,0.00016,2]
[362868705,1748500636763,9010.44128571,0.00016,2]
[362868706,1748500636786,9010.44128571,0.00016,2]
[362868707,1748500636812,9010.44128571,0.00016,2]
[362868708,1748500636835,9010.44128571,0.00016,2]
[362868709,1748500636857,9010.44128571,0.00016,2]
[362868710,1748500636880,9010.44128571,0.00016,2]
[362868711,1748500636902,9010.44128571,0.00016,2]
[362868712,1748500636925,9010.44128571,0.00016,2]
[362868713,1748500636948,9010.44128571,0.00016,2]
[362868714,1748500636972,9010.44128571,0.00016,2]
[362868715,1748500636994,9010.44128571,0.00016,2]
[362868716,1748500637020,9010.44128571,0.00016,2]
[362868717,1748500637042,9010.44128571,0.00016,2]
[362868718,1748500637065,9010.44128571,0.00016,2]
[362868719,1748500637088,9010.44128571,0.00016,2]
[362868720,1748500637110,9010.44128571,0.00016,2]
[362868721,1748500637134,9010.44128571,0.00016,2]
[362868722,1748500637156,9010.44128571,0.00016,2]
[362868723,1748500637179,9010.44128571,0.00016,2]
[362868724,1748500637201,9010.44128571,0.00016,2]
[362868725,1748500637225,9010.44128571,0.00016,2]
[362868726,1748500637247,9010.44128571,0.00016,2]
[362868727,1748500637269,9010.44128571,0.00016,2]
[362868728,1748500637291,9010.44128571,0.00016,2]
[362868729,1748500637314,9010.44128571,0.00016,2]
[362868730,1748500637336,9010.44128571,0.00016,2]
[362868731,1748500637358,9010.44128571,0.00016,2]
[362868732,1748500637381,9010.44128571,0.00016,2]
[362868733,1748500637404,9010.44128571,0.00016,2]
[362868734,1748500637428,9010.44128571,0.00016,2]
[362868735,1748500637452,9010.44128571,0.00016,2]
[362868736,1748500637475,9010.44128571,0.00016,2]
[362868737,1748500637501,9010.44128571,0.00016,2]
[362868738,1748500637524,9010.44128571,0.00016,2]
[362868739,1748500637547,9010.44128571,0.00016,2]
[362868740,1748500637570,9010.44128571,0.00016,2]
[362868741,1748500637593,9010.44128571,0.00016,2]
[362868742,1748500637612,9010.44128571,0.00016,2]
[362868743,1748500637631,9010.44128571,0.00016,2]
[362868744,1748500637650,9010.44128571,0.00016,2]
[362868745,1748500637672,9010.44128571,0.00016,2]
[362868746,1748500637691,9010.44128571,0.00016,2]
[362868747,1748500637711,9010.44128571,0.00016,2]
[362868748,1748500637733,9010.44128571,0.00016,2]
[362868749,1748500637754,9010.44128571,0.00016,2]
[362868750,1748500637777,9010.44128571,0.00016,2]
[362868751,1748500637803,9010.44128571,0.00016,2]
[362868752,1748500637828,9010.44128571,0.00016,2]
[362868753,1748500637854,9010.44128571,0.00016,2]
[362868754,1748500637880,9010.44128571,0.00016,2]
[362868755,1748500637904,683.67772967,0.00016,2]
[362868757,1748500806380,164.739428,0.00013699,2]
[362868842,1748501439498,-242.25396069,0.000189,2]
[362868845,1748501439508,-5000.0,0.00019177,2]
[362868847,1748501439517,-231.59091497,0.00019177,2]
[362868849,1748501439526,-334.89960281,0.00019178,2]
[362868851,1748501439536,-475.16239462,0.00019178,2]
[362868853,1748501439545,-383.65942728,0.00019178,2]
[362868855,1748501439555,-450.0,0.00019178,2]
[362868857,1748501439564,-416.38726602,0.00019178,2]
[362868859,1748501439573,-430.0,0.00019178,2]
[362868861,1748501439583,-430.0,0.00019178,2]
[362868863,1748501439592,-435.18956624,0.00019178,2]
[362868865,1748501439602,-430.0,0.00019178,2]
[362868867,1748501439612,-443.2320868,0.00019178,2]
[362868869,1748501439622,-400.52654759,0.00019178,2]
[362868874,1748501439659,-29.47345241,0.00019178,2]
[362868877,1748501439669,-430.0,0.00019178,2]
[362868879,1748501439679,-430.0,0.00019178,2]
[362868881,1748501439688,-430.0,0.00019178,2]
[362868883,1748501439697,-430.0,0.00019178,2]
[362868885,1748501439707,-430.0,0.00019178,2]
[362868887,1748501439716,-430.0,0.00019178,2]
[362868889,1748501439726,-430.0,0.00019178,2]
[362868891,1748501439734,-430.0,0.00019178,2]
[362868893,1748501439744,-430.0,0.00019178,2]
[362868895,1748501439753,-430.0,0.00019178,2]
[362868897,1748501439765,-430.0,0.00019178,2]
[362868899,1748501439774,-594.76382951,0.00019178,2]
[362868901,1748501439783,-740.42,0.00019178,2]
[362868903,1748501439792,-327.74782399,0.00019178,2]
[362868905,1748501439802,-430.0,0.00019178,2]
[362868907,1748501439812,-565.68,0.00019178,2]
[362868909,1748501439821,-414.67554306,0.00019178,2]
[362868911,1748501439831,-430.0,0.00019178,2]
[362868913,1748501439841,-430.0,0.00019178,2]
[362868915,1748501439851,-430.0,0.00019178,2]
[362868917,1748501439861,-430.0,0.00019178,2]
[362868919,1748501439871,-292.77211131,0.00019178,2]
[362868921,1748501439881,-430.0,0.00019178,2]
[362868924,1748501439891,-427.5509621,0.00019178,2]
[362868926,1748501439901,-430.0,0.00019178,2]
[362868928,1748501439911,-448.54498822,0.00019178,2]
[362868930,1748501439920,-430.0,0.00019178,2]
[362868932,1748501439930,-430.0,0.00019178,2]
[362868934,1748501439939,-166.69504819,0.00019178,2]
[362868936,1748501439949,-430.0,0.00019178,2]
[362868938,1748501439958,-430.0,0.00019178,2]
[362868940,1748501439967,-430.0,0.00019178,2]
[362868942,1748501439977,-430.0,0.00019178,2]
[362868944,1748501439986,-1108.14,0.00019178,2]
[362868946,1748501439995,-430.0,0.00019178,2]
[362868948,1748501440004,-440.51511178,0.00019178,2]
[362868950,1748501440014,-442.43030373,0.00019178,2]
[362868952,1748501440023,-430.0,0.00019178,2]
[362868954,1748501440032,-1422.28,0.00019178,2]
[362868956,1748501440043,-217.45,0.00019178,2]
[362868958,1748501440052,-430.0,0.00019178,2]
[362868960,1748501440062,-442.62415875,0.00019178,2]
[362868962,1748501440075,-430.0,0.00019178,2]
[362868964,1748501440084,-430.0,0.00019178,2]
[362868966,1748501440094,-558.77,0.00019178,2]
[362868968,1748501440105,-170.41345545,0.00019178,2]
[362868970,1748501440114,-368.36172699,0.00019178,2]
[362868972,1748501440125,-212.9141322,0.00019178,2]
[362868974,1748501440135,-475.03538997,0.00019178,2]
[362868976,1748501440146,-430.0,0.00019178,2]
[362868978,1748501440156,-297.87610709,0.00019178,2]
[362868980,1748501440167,-430.0,0.00019178,2]
[362868982,1748501440176,-430.0,0.00019178,2]
[362868984,1748501440186,-430.0,0.00019178,2]
[362868986,1748501440195,-430.0,0.00019178,2]
[362868988,1748501440205,-430.0,0.00019178,2]
[362868990,1748501440214,-430.0,0.00019178,2]
[362868992,1748501440223,-430.0,0.00019178,2]
[362868994,1748501440233,-430.0,0.00019178,2]
[362868996,1748501440242,-581.86,0.00019178,2]
[362868998,1748501440251,-594.74,0.00019178,2]
[362869000,1748501440260,-430.0,0.00019178,2]
[362869016,1748501440405,-450.40450747,0.00019178,2]
[362869018,1748501440415,-1681.09,0.00019178,2]
[362869020,1748501440424,-430.0,0.00019178,2]
[362869022,1748501440434,-430.0,0.00019178,2]
[362869024,1748501440444,-430.0,0.00019178,2]
[362869026,1748501440453,-430.0,0.00019178,2]
[362869028,1748501440462,-496.24709914,0.00019178,2]
[362869030,1748501440471,-430.0,0.00019178,2]
[362869032,1748501440480,-430.0,0.00019178,2]
[362869034,1748501440490,-250.49,0.00019178,2]
[362869035,1748501440506,-430.0,0.00019178,2]
[362869037,1748501440524,-430.0,0.00019178,2]
[362869039,1748501440534,-1750.94,0.00019178,2]
[362869042,1748501440546,-430.0,0.00019178,2]
[362869044,1748501440555,-430.0,0.00019178,2]
[362869046,1748501440565,-3025.9,0.00019178,2]
[362869048,1748501440574,-433.56780728,0.00019178,2]
[362869050,1748501440583,-151.0,0.00019178,2]
[362869052,1748501440593,-341.38505892,0.00019178,2]
[362869054,1748501440602,-169.131616,0.00019178,2]
[362869056,1748501440611,-156.587,0.00019233,2]
[362869058,1748501440621,-162.380719,0.00019288,2]
[362869060,1748501440630,-168.3888056,0.00019343,2]
[362869062,1748501440639,-162.0036984,0.00019398,2]
[362869064,1748501440649,-430.0,0.00019451,2]
[362869066,1748501440658,-430.0,0.00019451,2]
[362869068,1748501440667,-430.0,0.00019451,2]
[362869069,1748501440676,-257.93548553,0.00019451,2]
[362869072,1748501440686,-388.39792935,0.00019451,2]
[362869073,1748501440696,-430.0,0.00019451,2]
[362869075,1748501440705,-563.36406235,0.00019451,2]
[362869077,1748501440715,-430.0,0.00019451,2]
[362869079,1748501440725,-469.55745892,0.00019451,2]
[362869081,1748501440734,-430.0,0.00019451,2]
[362869084,1748501440749,-430.0,0.00019451,2]
[362869085,1748501440762,-468.49736692,0.00019451,2]
[362869088,1748501440772,-430.0,0.00019451,2]
[362869090,1748501440781,-430.0,0.00019451,2]
[362869092,1748501440791,-430.0,0.00019451,2]
[362869094,1748501440802,-3475.66,0.00019451,2]
[362869096,1748501440812,-430.0,0.00019451,2]
[362869098,1748501440822,-430.0,0.00019451,2]
[362869099,1748501440831,-350.62874166,0.00019451,2]
[362869101,1748501440840,-440.99112872,0.00019451,2]
[362869103,1748501440850,-430.0,0.00019451,2]
[362869105,1748501440859,-430.0,0.00019451,2]
[362869107,1748501440870,-174.88675193,0.00019451,2]
[362869109,1748501440880,-500.0,0.00019451,2]
[362869111,1748501440889,-165.02988256,0.00019451,2]
[362869113,1748501440898,-281.74542113,0.00019451,2]
[362869115,1748501440908,-295.5023939,0.00019451,2]
[362869117,1748501440917,-430.0,0.00019451,2]
[362869119,1748501440926,-200.0,0.00019451,2]
[362869121,1748501440935,-1241.93,0.00019451,2]
[362869123,1748501440944,-481.88,0.00019451,2]
[362869125,1748501440953,-430.0,0.00019451,2]
[362869127,1748501440963,-430.0,0.00019451,2]
[362869129,1748501440971,-430.0,0.00019451,2]
[362869131,1748501440981,-430.0,0.00019451,2]
[362869133,1748501440990,-189.60779744,0.00019451,2]
[362869135,1748501440998,-502.03696478,0.00019451,2]
[362869137,1748501441007,-861.5,0.00019451,2]
[362869139,1748501441017,-430.0,0.00019451,2]
[362869141,1748501441026,-430.0,0.00019451,2]
[362869143,1748501441035,-430.0,0.00019451,2]
[362869145,1748501441044,-430.0,0.00019451,2]
[362869147,1748501441053,-839.12,0.00019451,2]
[362869149,1748501441062,-430.0,0.00019451,2]
[362869151,1748501441075,-430.0,0.00019451,2]
[362869153,1748501441084,-430.0,0.00019452,2]
[362869155,1748501441093,-430.0,0.00019452,2]
[362869157,1748501441102,-430.0,0.00019452,2]
[362869158,1748501441113,-430.0,0.00019452,2]
[362869160,1748501441122,-430.0,0.00019452,2]
[362869162,1748501441131,-430.0,0.00019452,2]
[362869164,1748501441139,-430.0,0.00019452,2]
[362869166,1748501441148,-430.0,0.00019452,2]
[362869168,1748501441158,-430.0,0.00019452,2]
[362869170,1748501441167,-430.0,0.00019452,2]
[362869172,1748501441176,-430.0,0.00019452,2]
[362869174,1748501441186,-740.42,0.00019452,2]
[362869176,1748501441196,-430.0,0.00019452,2]
[362869178,1748501441205,-565.68,0.00019452,2]
[362869180,1748501441215,-284.97642762,0.00019452,2]
[362869182,1748501441225,-430.0,0.00019452,2]
[362869184,1748501441234,-430.0,0.00019452,2]
[362869186,1748501441244,-362.28775627,0.00019452,2]
[362869188,1748501441253,-430.0,0.00019452,2]
[362869190,1748501441262,-430.0,0.00019452,2]
[362869192,1748501441271,-430.0,0.00019452,2]
[362869194,1748501441280,-430.0,0.00019452,2]
[362869196,1748501441289,-432.9224785,0.00019452,2]
[362869198,1748501441299,-430.0,0.00019452,2]
[362869200,1748501441308,-1108.14,0.00019452,2]
[362869202,1748501441317,-1422.28,0.00019452,2]
[362869204,1748501441326,-430.0,0.00019452,2]
[362869206,1748501441335,-430.0,0.00019452,2]
[362869208,1748501441345,-558.77,0.00019452,2]
[362869210,1748501441355,-430.0,0.00019452,2]
[362869212,1748501441366,-430.0,0.00019452,2]
[362869214,1748501441376,-430.0,0.00019452,2]
[362869216,1748501441387,-430.0,0.00019452,2]
[362869218,1748501441396,-430.0,0.00019452,2]
[362869220,1748501441406,-327.94774875,0.00019452,2]
[362869222,1748501441415,-430.0,0.00019452,2]
[362869224,1748501441424,-581.86,0.00019452,2]
[362869226,1748501441433,-594.74,0.00019452,2]
[362869228,1748501441443,-1681.09,0.00019452,2]
[362869230,1748501441451,-430.0,0.00019452,2]
[362869232,1748501441461,-430.0,0.00019452,2]
[362869234,1748501441470,-430.0,0.00019452,2]
[362869236,1748501441479,-430.0,0.00019452,2]
[362869238,1748501441489,-539.88,0.00019452,2]
[362869240,1748501441498,-430.0,0.00019452,2]
[362869242,1748501441508,-430.0,0.00019452,2]
[362869244,1748501441517,-1750.94,0.00019452,2]
[362869246,1748501441527,-3025.9,0.00019452,2]
[362869248,1748501441536,-20690.50789706,0.00019467,2]
[362869250,1748501441545,-504.66641701,0.00019473,2]
[362869252,1748501441555,-500.0,0.00019473,2]
[362869254,1748501441564,-160.0,0.00019474,2]
[362869256,1748501441573,-160.0,0.00019498,2]
[362869258,1748501441582,-501.0,0.000195,2]
[362869260,1748501441591,-485.4809199,0.00019625,2]
[362869262,1748501441601,-609.59,0.0001968,2]
[362869264,1748501441611,-430.0,0.0001968,2]
[362869266,1748501441620,-430.0,0.0001968,2]
[362869268,1748501441629,-430.0,0.0001968,2]
[362869270,1748501441638,-590.29,0.0001968,2]
[362869272,1748501441647,-430.0,0.0001968,2]
[362869274,1748501441656,-430.0,0.0001968,2]
[362869276,1748501441666,-726.22,0.0001968,2]
[362869278,1748501441675,-697.14,0.0001968,2]
[362869280,1748501441684,-430.0,0.0001968,2]
[362869282,1748501441693,-1777.13,0.0001968,2]
[362869284,1748501441702,-587.14,0.0001968,2]
[362869286,1748501441711,-500.0,0.00019717,2]
[362869288,1748501441720,-505.14559696,0.00019717,2]
[362869290,1748501441729,-472.61748471,0.00019717,2]
[362869292,1748501441738,-501.05888498,0.00019717,2]
[362869294,1748501441747,-574.28842608,0.00019725,2]
[362869296,1748501441756,-430.0,0.00019725,2]
[362869298,1748501441765,-430.0,0.00019725,2]
[362869300,1748501441774,-430.0,0.00019725,2]
[362869302,1748501441783,-430.0,0.00019725,2]
[362869304,1748501441793,-430.0,0.00019725,2]
[362869306,1748501441802,-435.00917691,0.00019725,2]
[362869308,1748501441811,-430.0,0.00019725,2]
[362869310,1748501441820,-430.0,0.00019725,2]
[362869311,1748501441829,-3475.66,0.00019725,2]
[362869313,1748501441839,-430.0,0.00019725,2]
[362869315,1748501441849,-430.0,0.00019725,2]
[362869316,1748501441859,-430.0,0.00019725,2]
[362869317,1748501441868,-430.0,0.00019725,2]
[362869318,1748501441877,-430.0,0.00019725,2]
[362869319,1748501441886,-1241.93,0.00019725,2]
[362869320,1748501441896,-481.88,0.00019725,2]
[362869321,1748501441904,-430.0,0.00019725,2]
[362869322,1748501441912,-430.0,0.00019725,2]
[362869323,1748501441922,-430.0,0.00019725,2]
[362869324,1748501441932,-430.0,0.00019725,2]
[362869325,1748501441941,-861.5,0.00019725,2]
[362869326,1748501441950,-430.0,0.00019725,2]
[362869327,1748501441959,-346.91551838,0.00019725,2]
[362869328,1748501441969,-430.0,0.00019725,2]
[362869329,1748501441978,-839.12,0.00019725,2]
[362869330,1748501441988,-466.94882914,0.00019726,2]
[362869331,1748501441997,-368.39913559,0.00019726,2]
[362869333,1748501442007,-430.0,0.00019726,2]
[362869334,1748501442016,-430.0,0.00019726,2]
[362869336,1748501442026,-159.14003444,0.00019726,2]
[362869338,1748501442035,-430.0,0.00019726,2]
[362869340,1748501442044,-430.0,0.00019726,2]
[362869342,1748501442054,-430.0,0.00019726,2]
[362869344,1748501442068,-200.05595726,0.00019726,2]
[362869346,1748501442077,-430.0,0.00019726,2]
[362869348,1748501442087,-740.42,0.00019726,2]
[362869350,1748501442096,-174.721436,0.00019726,2]
[362869352,1748501442106,-565.68,0.00019726,2]
[362869355,1748501442116,-430.0,0.00019726,2]
[362869356,1748501442125,-430.0,0.00019726,2]
[362869359,1748501442135,-430.0,0.00019726,2]
[362869361,1748501442145,-430.0,0.00019726,2]
[362869363,1748501442154,-430.0,0.00019726,2]
[362869365,1748501442163,-430.0,0.00019726,2]
[362869367,1748501442173,-1108.14,0.00019726,2]
[362869369,1748501442182,-1422.28,0.00019726,2]
[362869371,1748501442192,-430.0,0.00019726,2]
[362869372,1748501442201,-430.0,0.00019726,2]
[362869375,1748501442210,-558.77,0.00019726,2]
[362869377,1748501442219,-430.0,0.00019726,2]
[362869379,1748501442227,-430.0,0.00019726,2]
[362869381,1748501442236,-430.0,0.00019726,2]
[362869383,1748501442244,-430.0,0.00019726,2]
[362869385,1748501442253,-430.0,0.00019726,2]
[362869386,1748501442263,-430.0,0.00019726,2]
[362869388,1748501442272,-581.86,0.00019726,2]
[362869390,1748501442281,-594.74,0.00019726,2]
[362869392,1748501442290,-1681.09,0.00019726,2]
[362869395,1748501442300,-417.84315688,0.00019726,2]
[362869397,1748501442310,-430.0,0.00019726,2]
[362869398,1748501442319,-438.38242655,0.00019726,2]
[362869400,1748501442328,-430.0,0.00019726,2]
[362869402,1748501442337,-430.0,0.00019726,2]
[362869404,1748501442347,-1750.94,0.00019726,2]
[362869406,1748501442356,-3025.9,0.00019726,2]
[362869408,1748501442366,-5099.74905308,0.0001982,2]
[362869410,1748501442376,-452.57,0.00019823,3]
[362869412,1748501442385,-500.0,0.00019829,2]
[362869414,1748501442395,-2923.1,0.00019833,2]
[362869416,1748501442404,-2923.1,0.00019833,2]
[362869418,1748501442414,-2923.1,0.00019833,2]
[362869420,1748501442423,-2923.1,0.00019833,2]
[362869422,1748501442432,-2923.1,0.00019833,2]
[362869424,1748501442441,-150.85,0.00019846,3]
[362869426,1748501442452,-502.12348826,0.00019856,2]
[362869428,1748501442462,-503.39334109,0.00019856,2]
[362869430,1748501442471,-595.32326124,0.00019863,2]
[362869432,1748501442481,-501.31628844,0.00019863,2]
[362869434,1748501442490,-470.5380139,0.00019863,2]
[362869436,1748501442499,-500.0,0.00019865,2]
[362869438,1748501442509,-500.0,0.00019865,2]
[362869440,1748501442518,-500.59548203,0.00019865,2]
[362869442,1748501442527,-500.0,0.00019888,2]
[362869444,1748501442536,-500.0,0.00019888,2]
[362869446,1748501442545,-500.0,0.00019888,2]
[362869449,1748501442554,-608.88509455,0.00019888,2]
[362869452,1748501442564,-502.48314402,0.00019888,2]
[362869455,1748501442573,-420.59571243,0.000199,2]
[362869457,1748501442583,-1206.79,0.00019913,3]
[362869459,1748501442592,-603.39,0.00019913,3]
[362869461,1748501442601,-301.7,0.00019913,3]
[362869463,1748501442611,-4664.78027303,0.00019923,2]
[362869465,1748501442621,-500.0,0.00019943,2]
[362869467,1748501442631,-609.59,0.00019954,2]
[362869469,1748501442640,-430.0,0.00019954,2]
[362869471,1748501442649,-590.29,0.00019954,2]
[362869473,1748501442659,-430.0,0.00019954,2]
[362869475,1748501442668,-430.0,0.00019954,2]
[362869477,1748501442677,-726.22,0.00019954,2]
[362869479,1748501442687,-697.14,0.00019954,2]
[362869481,1748501442696,-430.0,0.00019954,2]
[362869483,1748501442705,-1777.13,0.00019954,2]
[362869485,1748501442714,-587.14,0.00019954,2]
[362869487,1748501442723,-500.89951352,0.00019967,2]
[362869489,1748501442732,-500.0,0.00019967,2]
[362869491,1748501442741,-500.0,0.00019967,2]
[362869493,1748501442750,-500.0,0.00019967,2]
[362869495,1748501442760,-4591.54463216,0.00019989,2]
[362869496,1748501442769,-155.0,0.00019998,2]
[362869499,1748501442779,-430.0,0.00019999,2]
[362869501,1748501442788,-430.0,0.00019999,2]
[362869502,1748501442797,-339.76094807,0.00019999,2]
[362869504,1748501442806,-430.0,0.00019999,2]
[362869507,1748501442818,-430.0,0.00019999,2]
[362869508,1748501442827,-430.0,0.00019999,2]
[362869510,1748501442837,-3475.66,0.00019999,2]
[362869512,1748501442847,-430.0,0.00019999,2]
[362869514,1748501442856,-430.0,0.00019999,2]
[362869516,1748501442866,-430.0,0.00019999,2]
[362869519,1748501442876,-517.75836595,0.00019999,2]
[362869520,1748501442886,-430.0,0.00019999,2]
[362869522,1748501442895,-1241.93,0.00019999,2]
[362869534,1748501442905,-481.88,0.00019999,2]
[362869536,1748501443007,-430.0,0.00019999,2]
[362869538,1748501443017,-430.0,0.00019999,2]
[362869540,1748501443026,-245.22146804,0.00019999,2]
[362869542,1748501443035,-430.0,0.00019999,2]
[362869544,1748501443044,-861.5,0.00019999,2]
[362869546,1748501443054,-430.0,0.00019999,2]
[362869548,1748501443063,-433.89524648,0.00019999,2]
[362869550,1748501443076,-839.12,0.00019999,2]
[362869552,1748501443086,-430.0,0.0002,2]
[362869554,1748501443096,-430.0,0.0002,2]
[362869556,1748501443105,-227.41444053,0.0002,5]
[362869558,1748501443116,-430.0,0.0002,2]
[362869560,1748501443125,-430.0,0.0002,2]
[362869562,1748501443134,-430.0,0.0002,2]
[362869564,1748501443146,-740.42,0.0002,2]
[362869566,1748501443155,-565.68,0.0002,2]
[362869568,1748501443164,-430.0,0.0002,2]
[362869570,1748501443174,-430.0,0.0002,2]